[Event "Late-Titled-Tuesday-Blitz-February-13-2024"]
[Site "Chess.com"]
[Date "2024.02.13"]
[Round "10"]
[White "Zavgorodniy_Sergiy"]
[Black "ACollins05"]
[Result "1-0"]
[WhiteElo "2646"]
[BlackElo "2470"]
[TimeControl "180+1"]
[EndTime "15:54:51 PST"]
[Termination "Zavgorodniy_Sergiy won by resignation"]

1. d4 {[%clk 0:03:00.9]} 1... d5 {[%clk 0:02:57.6]} 2. c4 {[%clk 0:03:00.3]}
2... e6 {[%clk 0:02:57.9]} 3. Nf3 {[%clk 0:03:00.1]} 3... Nf6 {[%clk 0:02:57.7]}
4. e3 {[%clk 0:03:00.5]} 4... Be7 {[%clk 0:02:54.8]} 5. Nbd2 {[%clk 0:03:00.3]}
5... O-O {[%clk 0:02:54.2]} 6. Bd3 {[%clk 0:03:00.7]} 6... b6 {[%clk 0:02:52.9]}
7. O-O {[%clk 0:03:00.8]} 7... Bb7 {[%clk 0:02:52.6]} 8. Qe2 {[%clk 0:03:01.4]}
8... c5 {[%clk 0:02:52.4]} 9. b3 {[%clk 0:03:01.3]} 9... Nc6 {[%clk 0:02:52.4]}
10. Bb2 {[%clk 0:03:01.1]} 10... Rc8 {[%clk 0:02:52]} 11. Rac1 {[%clk
0:03:00.6]} 11... cxd4 {[%clk 0:02:44]} 12. exd4 {[%clk 0:03:01.5]} 12... Qc7
{[%clk 0:02:27.9]} 13. Rfd1 {[%clk 0:02:58.9]} 13... Rfd8 {[%clk 0:02:26.8]} 14.
a3 {[%clk 0:02:58.5]} 14... Qb8 {[%clk 0:02:26.1]} 15. c5 {[%clk 0:02:57.2]}
15... bxc5 {[%clk 0:02:12.9]} 16. dxc5 {[%clk 0:02:58.1]} 16... Nh5 {[%clk
0:01:55.3]} 17. g3 {[%clk 0:02:44.3]} 17... Bf6 {[%clk 0:01:55.2]} 18. Bxf6
{[%clk 0:02:43.4]} 18... Nxf6 {[%clk 0:01:56.1]} 19. b4 {[%clk 0:02:43.8]} 19...
e5 {[%clk 0:01:54]} 20. Bf5 {[%clk 0:02:42.3]} 20... Rc7 {[%clk 0:01:48.7]} 21.
Nxe5 {[%clk 0:02:40.6]} 21... Nd4 {[%clk 0:01:28.1]} 22. Qd3 {[%clk 0:02:40.7]}
22... Re7 {[%clk 0:01:04.3]} 23. f4 {[%clk 0:02:38.8]} 23... Rxe5 {[%clk
0:00:57.4]} 24. fxe5 {[%clk 0:02:34.5]} 24... Qxe5 {[%clk 0:00:58.3]} 25. Nf3
{[%clk 0:02:29.6]} 25... Ne2+ {[%clk 0:00:53.3]} 26. Kf2 {[%clk 0:02:24.3]}
26... Nxc1 {[%clk 0:00:51.9]} 27. Nxe5 {[%clk 0:02:24.2]} 27... Nxd3+ {[%clk
0:00:51.4]} 28. Bxd3 {[%clk 0:02:16.8]} 28... Re8 {[%clk 0:00:45.2]} 29. Nf3
{[%clk 0:02:09.2]} 29... Ng4+ {[%clk 0:00:43.8]} 30. Kg1 {[%clk 0:02:09.2]}
30... Re3 {[%clk 0:00:38.6]} 31. Nd4 {[%clk 0:02:08.1]} 31... Ne5 {[%clk
0:00:34.2]} 32. Be2 {[%clk 0:01:56.7]} 32... Rxa3 {[%clk 0:00:32.4]} 33. b5
{[%clk 0:01:57.2]} 33... Rc3 {[%clk 0:00:27.5]} 34. c6 {[%clk 0:01:57.2]} 34...
Bc8 {[%clk 0:00:20.1]} 35. Ra1 {[%clk 0:01:54.2]} 35... a6 {[%clk 0:00:18.5]}
36. bxa6 {[%clk 0:01:50.3]} 36... Nxc6 {[%clk 0:00:17.7]} 37. Nxc6 {[%clk
0:01:42]} 37... Bxa6 {[%clk 0:00:11.4]} 38. Rxa6 {[%clk 0:01:41.1]} 38... g6
{[%clk 0:00:11.6]} 39. Ne7+ {[%clk 0:01:36.9]} 39... Kg7 {[%clk 0:00:11.1]} 40.
Nxd5 {[%clk 0:01:36.8]} 40... Rc2 {[%clk 0:00:11.4]} 41. Kf2 {[%clk 0:01:35.7]}
41... h5 {[%clk 0:00:10.7]} 42. h4 {[%clk 0:01:35.3]} 42... Rc5 {[%clk
0:00:09.3]} 43. Nf4 {[%clk 0:01:34.9]} 43... Rf5 {[%clk 0:00:05.5]} 44. Ra7
{[%clk 0:01:31.6]} 44... Kg8 {[%clk 0:00:02.4]} 45. Bc4 {[%clk 0:01:29.1]} 45...
Rf6 {[%clk 0:00:01.7]} 46. Rxf7 {[%clk 0:01:27.5]} 46... Rxf7 {[%clk 0:00:01.4]}
47. Bxf7+ {[%clk 0:01:28.4]} 47... Kxf7 {[%clk 0:00:02]} 48. Nh3 {[%clk
0:01:28.9]} 48... Kf6 {[%clk 0:00:02.4]} 49. Kf3 {[%clk 0:01:29.4]} 49... Kf5
{[%clk 0:00:03.3]} 50. Ng5 {[%clk 0:01:29.4]} 50... Ke5 {[%clk 0:00:03.9]} 51.
g4 {[%clk 0:01:23.5]} 51... hxg4+ {[%clk 0:00:04]} 52. Kxg4 {[%clk 0:01:24.4]}
52... Kf6 {[%clk 0:00:04.8]} 53. Kf4 {[%clk 0:01:24.4]} 53... Kg7 {[%clk
0:00:03.4]} 54. Nf3 {[%clk 0:01:23.2]} 54... Kh6 {[%clk 0:00:04.3]} 55. Kg4
{[%clk 0:01:23.2]} 55... Kh7 {[%clk 0:00:03.6]} 56. Kg5 {[%clk 0:01:23.5]} 56...
Kg7 {[%clk 0:00:04.2]} 57. Ne5 {[%clk 0:01:23.7]} 57... Kh7 {[%clk 0:00:04.6]}
58. Nxg6 {[%clk 0:01:24]} 58... Kg8 {[%clk 0:00:05.5]} 59. h5 {[%clk 0:01:23.7]}
59... Kg7 {[%clk 0:00:06.4]} 60. Nh4 {[%clk 0:01:23.5]} 60... Kh7 {[%clk
0:00:07.3]} 61. h6 {[%clk 0:01:23.7]} 61... Kg8 {[%clk 0:00:08.2]} 62. Kg6
{[%clk 0:01:23.1]} 62... Kh8 {[%clk 0:00:07.9]} 63. Nf3 {[%clk 0:01:23.3]} 63...
Kg8 {[%clk 0:00:08.6]} 64. Ng5 {[%clk 0:01:23.5]} 64... Kh8 {[%clk 0:00:09.2]}
65. Nf7+ {[%clk 0:01:23.7]} 65... Kg8 {[%clk 0:00:09.9]} 66. h7+ {[%clk
0:01:24.2]} 66... Kf8 {[%clk 0:00:10.8]} 67. h8=Q+ {[%clk 0:01:24.3]} 67... Ke7
{[%clk 0:00:11.7]} 1-0

[Event "Late-Titled-Tuesday-Blitz-February-13-2024"]
[Site "Chess.com"]
[Date "2024.02.13"]
[Round "10"]
[White "SergioMoralesG"]
[Black "KarolKacprzak"]
[Result "1-0"]
[WhiteElo "2551"]
[BlackElo "2722"]
[TimeControl "180+1"]
[EndTime "15:54:52 PST"]
[Termination "SergioMoralesG won on time"]

1. d4 {[%clk 0:02:58.9]} 1... d5 {[%clk 0:02:55.7]} 2. c4 {[%clk 0:02:58.8]}
2... e6 {[%clk 0:02:54.5]} 3. Nf3 {[%clk 0:02:59.4]} 3... Nf6 {[%clk 0:02:53.7]}
4. Nc3 {[%clk 0:03:00]} 4... c6 {[%clk 0:02:47.9]} 5. Bg5 {[%clk 0:02:59.3]}
5... dxc4 {[%clk 0:02:34.8]} 6. e4 {[%clk 0:02:53.7]} 6... b5 {[%clk 0:02:33.7]}
7. e5 {[%clk 0:02:54]} 7... h6 {[%clk 0:02:33.9]} 8. Bh4 {[%clk 0:02:54.6]} 8...
g5 {[%clk 0:02:31.9]} 9. Bg3 {[%clk 0:02:55.2]} 9... Nd5 {[%clk 0:02:13.4]} 10.
Nd2 {[%clk 0:02:55.3]} 10... Bb7 {[%clk 0:01:57.7]} 11. Nde4 {[%clk 0:02:51.3]}
11... Nd7 {[%clk 0:01:54.9]} 12. Be2 {[%clk 0:02:48.8]} 12... Qb6 {[%clk
0:01:44.3]} 13. Bh5 {[%clk 0:02:40.3]} 13... c5 {[%clk 0:01:30.4]} 14. dxc5
{[%clk 0:02:23.5]} 14... Bxc5 {[%clk 0:01:31.3]} 15. Qf3 {[%clk 0:02:06.8]}
15... O-O-O {[%clk 0:01:12.2]} 16. O-O {[%clk 0:01:37.8]} 16... Rhf8 {[%clk
0:00:58.6]} 17. a4 {[%clk 0:01:18.9]} 17... b4 {[%clk 0:00:52.5]} 18. Nb5 {[%clk
0:01:18.6]} 18... Ne7 {[%clk 0:00:35.7]} 19. Qe2 {[%clk 0:00:53.9]} 19... Bd5
{[%clk 0:00:22.6]} 20. Ned6+ {[%clk 0:00:50.5]} 20... Kb8 {[%clk 0:00:18.2]} 21.
Nxc4 {[%clk 0:00:49.8]} 21... Qc6 {[%clk 0:00:16.8]} 22. Na5 {[%clk 0:00:42.1]}
22... Qa8 {[%clk 0:00:16.6]} 23. Nd6 {[%clk 0:00:36.8]} 23... Bxg2 {[%clk
0:00:13.2]} 24. Qb5+ {[%clk 0:00:31.4]} 24... Bb6 {[%clk 0:00:11.9]} 25. Rfc1
{[%clk 0:00:22.1]} 25... Qd5 {[%clk 0:00:04.4]} 26. Qe2 {[%clk 0:00:12.1]} 26...
Qxa5 {[%clk 0:00:02.9]} 27. Kxg2 {[%clk 0:00:10.3]} 27... Nd5 {[%clk 0:00:02.4]}
28. Bf3 {[%clk 0:00:09.2]} 28... Nc5 {[%clk 0:00:01.8]} 29. Nc4 {[%clk
0:00:05.3]} 1-0

[Event "Late-Titled-Tuesday-Blitz-February-13-2024"]
[Site "Chess.com"]
[Date "2024.02.13"]
[Round "10"]
[White "kuli4ik"]
[Black "Doomfist26"]
[Result "1-0"]
[WhiteElo "2848"]
[BlackElo "2650"]
[TimeControl "180+1"]
[EndTime "15:54:53 PST"]
[Termination "kuli4ik won by resignation"]

1. e4 {[%clk 0:03:00.9]} 1... e6 {[%clk 0:02:58.4]} 2. d4 {[%clk 0:02:59.9]}
2... d5 {[%clk 0:02:55.8]} 3. exd5 {[%clk 0:03:00.8]} 3... exd5 {[%clk
0:02:55.8]} 4. Nf3 {[%clk 0:03:01.3]} 4... Nc6 {[%clk 0:02:56.4]} 5. c4 {[%clk
0:03:02.1]} 5... Bg4 {[%clk 0:02:53.9]} 6. Nc3 {[%clk 0:03:01.1]} 6... Bb4
{[%clk 0:02:52.5]} 7. Be3 {[%clk 0:02:57.8]} 7... Nf6 {[%clk 0:02:51]} 8. h3
{[%clk 0:02:57.4]} 8... Bh5 {[%clk 0:02:50.4]} 9. a3 {[%clk 0:02:53.4]} 9...
Bxc3+ {[%clk 0:02:47.8]} 10. bxc3 {[%clk 0:02:53.2]} 10... O-O {[%clk
0:02:48.4]} 11. c5 {[%clk 0:02:52.3]} 11... Re8 {[%clk 0:02:43.1]} 12. Be2
{[%clk 0:02:51.1]} 12... Ne4 {[%clk 0:02:43.6]} 13. Rc1 {[%clk 0:02:47.3]} 13...
Ng3 {[%clk 0:02:37.7]} 14. fxg3 {[%clk 0:02:45.3]} 14... Rxe3 {[%clk 0:02:37.3]}
15. O-O {[%clk 0:02:45.8]} 15... Qe7 {[%clk 0:02:33.9]} 16. Bb5 {[%clk
0:02:41.6]} 16... Re8 {[%clk 0:02:32.8]} 17. g4 {[%clk 0:02:40.4]} 17... Bg6
{[%clk 0:02:32.4]} 18. Bxc6 {[%clk 0:02:37.6]} 18... bxc6 {[%clk 0:02:32.1]} 19.
Qa4 {[%clk 0:02:33.6]} 19... Bd3 {[%clk 0:02:29]} 20. Rfe1 {[%clk 0:02:28.4]}
20... Be2 {[%clk 0:02:12.1]} 21. Ne5 {[%clk 0:02:20.7]} 21... f6 {[%clk
0:02:05.6]} 22. Nxc6 {[%clk 0:02:04.7]} 22... Qd7 {[%clk 0:02:03.9]} 23. Kf2
{[%clk 0:01:59.5]} 23... a6 {[%clk 0:01:44]} 24. c4 {[%clk 0:01:43.5]} 24...
dxc4 {[%clk 0:01:33.8]} 25. Rxc4 {[%clk 0:01:07.2]} 25... Qd5 {[%clk 0:01:21.1]}
26. Ne5 {[%clk 0:01:01.2]} 26... R8xe5 {[%clk 0:00:40.9]} 27. dxe5 {[%clk
0:01:00.2]} 27... Qxe5 {[%clk 0:00:37.6]} 28. Rcc1 {[%clk 0:00:36]} 28... h5
{[%clk 0:00:24.3]} 29. gxh5 {[%clk 0:00:30.9]} 29... Qg3+ {[%clk 0:00:13.9]} 30.
Kg1 {[%clk 0:00:30.9]} 30... Bf3 {[%clk 0:00:14.6]} 31. Qc4+ {[%clk 0:00:22.9]}
31... Kh8 {[%clk 0:00:14.4]} 32. Qf1 {[%clk 0:00:21.2]} 32... Bxg2 {[%clk
0:00:05]} 33. Rxe3 {[%clk 0:00:17.7]} 1-0

[Event "Late-Titled-Tuesday-Blitz-February-13-2024"]
[Site "Chess.com"]
[Date "2024.02.13"]
[Round "10"]
[White "sotochess"]
[Black "ChadBiryani"]
[Result "1-0"]
[WhiteElo "2583"]
[BlackElo "2449"]
[TimeControl "180+1"]
[EndTime "15:54:55 PST"]
[Termination "sotochess won by checkmate"]

1. e4 {[%clk 0:02:59.2]} 1... c5 {[%clk 0:02:59.3]} 2. Nf3 {[%clk 0:02:58.8]}
2... d6 {[%clk 0:02:59.8]} 3. d4 {[%clk 0:02:58.7]} 3... cxd4 {[%clk 0:03:00.1]}
4. Nxd4 {[%clk 0:02:59.6]} 4... Nf6 {[%clk 0:03:00.3]} 5. f3 {[%clk 0:03:00.1]}
5... e5 {[%clk 0:02:52.1]} 6. Bb5+ {[%clk 0:02:58.7]} 6... Bd7 {[%clk
0:02:48.6]} 7. Bxd7+ {[%clk 0:02:58]} 7... Qxd7 {[%clk 0:02:37.9]} 8. Nf5 {[%clk
0:02:58.9]} 8... d5 {[%clk 0:02:30.8]} 9. Bg5 {[%clk 0:02:58.8]} 9... dxe4
{[%clk 0:01:45.3]} 10. Bxf6 {[%clk 0:02:57.4]} 10... gxf6 {[%clk 0:01:36.6]} 11.
fxe4 {[%clk 0:02:54.2]} 11... Bc5 {[%clk 0:01:25.8]} 12. Nd2 {[%clk 0:02:41.7]}
12... Rg8 {[%clk 0:01:16.9]} 13. Qe2 {[%clk 0:02:38.9]} 13... Na6 {[%clk
0:00:59.6]} 14. O-O-O {[%clk 0:02:33]} 14... O-O-O {[%clk 0:00:54.6]} 15. Nb3
{[%clk 0:02:07.2]} 15... Qc7 {[%clk 0:00:27.4]} 16. Kb1 {[%clk 0:01:57.2]} 16...
h5 {[%clk 0:00:22.7]} 17. Nxc5 {[%clk 0:01:40]} 17... Nxc5 {[%clk 0:00:22.4]}
18. Rxd8+ {[%clk 0:01:35.5]} 18... Kxd8 {[%clk 0:00:20.5]} 19. Rd1+ {[%clk
0:01:32.3]} 19... Kc8 {[%clk 0:00:21.1]} 20. Rd5 {[%clk 0:01:18.8]} 20... Ne6
{[%clk 0:00:17.5]} 21. g3 {[%clk 0:01:15.8]} 21... Kb8 {[%clk 0:00:16.4]} 22.
Qxh5 {[%clk 0:01:10.6]} 22... Qc4 {[%clk 0:00:14.5]} 23. Qf3 {[%clk 0:01:02.3]}
23... Ng5 {[%clk 0:00:12.1]} 24. Qd1 {[%clk 0:01:02]} 24... a6 {[%clk
0:00:07.9]} 25. Nd6 {[%clk 0:00:59.8]} 25... Qb4 {[%clk 0:00:06.3]} 26. a3
{[%clk 0:00:56.1]} 26... Qa4 {[%clk 0:00:05.7]} 27. Qd3 {[%clk 0:00:47.6]} 27...
Rd8 {[%clk 0:00:03.6]} 28. h4 {[%clk 0:00:42]} 28... Ne6 {[%clk 0:00:03.3]} 29.
Nxf7 {[%clk 0:00:41.8]} 29... Rf8 {[%clk 0:00:01.6]} 30. Nd6 {[%clk 0:00:40.3]}
30... Nd4 {[%clk 0:00:02.2]} 31. c3 {[%clk 0:00:38.5]} 31... Nc6 {[%clk
0:00:02.9]} 32. Nc4 {[%clk 0:00:36.6]} 32... f5 {[%clk 0:00:03.1]} 33. exf5
{[%clk 0:00:36.3]} 33... Qb3 {[%clk 0:00:02.3]} 34. Nxe5 {[%clk 0:00:35.3]}
34... Nxe5 {[%clk 0:00:02.3]} 35. Rxe5 {[%clk 0:00:35.4]} 35... Qb6 {[%clk
0:00:02.4]} 36. Qd4 {[%clk 0:00:34.9]} 36... Qb3 {[%clk 0:00:02.4]} 37. Qf4
{[%clk 0:00:33.9]} 37... Ka7 {[%clk 0:00:02.1]} 38. Qe3+ {[%clk 0:00:33.8]}
38... b6 {[%clk 0:00:01.7]} 39. Re7+ {[%clk 0:00:33.5]} 39... Kb8 {[%clk
0:00:02.4]} 40. Qe5+ {[%clk 0:00:33.5]} 40... Ka8 {[%clk 0:00:02]} 41. Qe4+
{[%clk 0:00:33.6]} 41... Kb8 {[%clk 0:00:02.1]} 42. Qb7# {[%clk 0:00:34.1]} 1-0

[Event "Late-Titled-Tuesday-Blitz-February-13-2024"]
[Site "Chess.com"]
[Date "2024.02.13"]
[Round "10"]
[White "VitaliyBernadskiy"]
[Black "Msb2"]
[Result "0-1"]
[WhiteElo "2897"]
[BlackElo "3021"]
[TimeControl "180+1"]
[EndTime "15:54:56 PST"]
[Termination "Msb2 won by resignation"]

1. g3 {[%clk 0:03:00.6]} 1... d5 {[%clk 0:02:59.9]} 2. Bg2 {[%clk 0:02:59.9]}
2... e6 {[%clk 0:03:00.6]} 3. d3 {[%clk 0:03:00.4]} 3... Nf6 {[%clk 0:03:01.2]}
4. e4 {[%clk 0:03:00.9]} 4... dxe4 {[%clk 0:02:56.8]} 5. dxe4 {[%clk 0:03:01.8]}
5... Qxd1+ {[%clk 0:02:57.3]} 6. Kxd1 {[%clk 0:03:02.6]} 6... Bc5 {[%clk
0:02:56.8]} 7. f3 {[%clk 0:02:57.7]} 7... e5 {[%clk 0:02:52.4]} 8. Ne2 {[%clk
0:02:52.9]} 8... O-O {[%clk 0:02:52]} 9. Nd2 {[%clk 0:02:45]} 9... a5 {[%clk
0:02:47.6]} 10. Nc4 {[%clk 0:02:42.9]} 10... Rd8+ {[%clk 0:02:45]} 11. Ke1
{[%clk 0:02:35.2]} 11... Nc6 {[%clk 0:02:45]} 12. Be3 {[%clk 0:02:35.3]} 12...
Bxe3 {[%clk 0:02:30.2]} 13. Nxe3 {[%clk 0:02:36.2]} 13... b6 {[%clk 0:02:30.7]}
14. Kf2 {[%clk 0:02:31.4]} 14... Ba6 {[%clk 0:02:28]} 15. Bf1 {[%clk 0:02:30.4]}
15... Rd2 {[%clk 0:02:12.9]} 16. Ke1 {[%clk 0:02:30.5]} 16... Rad8 {[%clk
0:02:04]} 17. a3 {[%clk 0:01:59.7]} 17... R2d7 {[%clk 0:01:50.2]} 18. Rd1 {[%clk
0:01:07.1]} 18... Rxd1+ {[%clk 0:01:45.2]} 19. Nxd1 {[%clk 0:01:08]} 19... g6
{[%clk 0:01:40.7]} 20. Ne3 {[%clk 0:01:06.9]} 20... Kg7 {[%clk 0:01:40.4]} 21.
Nc3 {[%clk 0:01:04]} 21... Bxf1 {[%clk 0:01:39.7]} 22. Rxf1 {[%clk 0:01:04.9]}
22... Nd4 {[%clk 0:01:38.7]} 23. Kf2 {[%clk 0:01:04.8]} 23... Nxc2 {[%clk
0:01:38.4]} 24. Nc4 {[%clk 0:00:37.7]} 24... Rd4 {[%clk 0:00:54.8]} 25. b3
{[%clk 0:00:16.6]} 25... Rd3 {[%clk 0:00:52.4]} 26. Ne2 {[%clk 0:00:12]} 26...
Rxb3 {[%clk 0:00:50.2]} 27. Nxe5 {[%clk 0:00:09.5]} 27... Nxa3 {[%clk
0:00:48.7]} 28. Rd1 {[%clk 0:00:05.7]} 28... Nb5 {[%clk 0:00:46.8]} 29. Nf4
{[%clk 0:00:04.4]} 29... Rb2+ {[%clk 0:00:46]} 30. Ke3 {[%clk 0:00:03.6]} 30...
a4 {[%clk 0:00:44.5]} 31. g4 {[%clk 0:00:02.2]} 31... g5 {[%clk 0:00:34.5]} 32.
Nh5+ {[%clk 0:00:02.5]} 32... Nxh5 {[%clk 0:00:34.7]} 33. gxh5 {[%clk
0:00:03.4]} 33... Nd6 {[%clk 0:00:33.2]} 34. Ng4 {[%clk 0:00:02.4]} 34... a3
{[%clk 0:00:31.3]} 35. h6+ {[%clk 0:00:01.9]} 35... Kg6 {[%clk 0:00:31.8]} 36.
e5 {[%clk 0:00:02]} 36... Nf5+ {[%clk 0:00:24.6]} 37. Ke4 {[%clk 0:00:01.6]}
37... Rb4+ {[%clk 0:00:24.9]} 38. Kd5 {[%clk 0:00:01.4]} 38... Rxg4 {[%clk
0:00:25.1]} 39. fxg4 {[%clk 0:00:01.2]} 39... Ne3+ {[%clk 0:00:25.5]} 40. Ke4
{[%clk 0:00:01.3]} 40... Nxd1 {[%clk 0:00:26.4]} 41. e6 {[%clk 0:00:02.1]} 41...
fxe6 {[%clk 0:00:26.8]} 0-1

[Event "Late-Titled-Tuesday-Blitz-February-13-2024"]
[Site "Chess.com"]
[Date "2024.02.13"]
[Round "10"]
[White "Jarrahi2452"]
[Black "nj123456"]
[Result "1-0"]
[WhiteElo "2825"]
[BlackElo "2459"]
[TimeControl "180+1"]
[EndTime "15:54:57 PST"]
[Termination "Jarrahi2452 won by checkmate"]

1. d4 {[%clk 0:03:00.9]} 1... d5 {[%clk 0:02:59.9]} 2. c4 {[%clk 0:02:59.4]}
2... e6 {[%clk 0:03:00.2]} 3. Nf3 {[%clk 0:02:58.8]} 3... Nf6 {[%clk 0:02:59.3]}
4. g3 {[%clk 0:02:57.4]} 4... Bb4+ {[%clk 0:02:58.3]} 5. Bd2 {[%clk 0:02:54.6]}
5... Be7 {[%clk 0:02:58]} 6. Bg2 {[%clk 0:02:53.6]} 6... O-O {[%clk 0:02:57.7]}
7. cxd5 {[%clk 0:02:52.4]} 7... exd5 {[%clk 0:02:56.7]} 8. O-O {[%clk
0:02:52.8]} 8... c6 {[%clk 0:02:56.9]} 9. Nc3 {[%clk 0:02:51.2]} 9... Re8 {[%clk
0:02:56.2]} 10. Qc2 {[%clk 0:02:50.6]} 10... Nbd7 {[%clk 0:02:54.9]} 11. e4
{[%clk 0:02:44.2]} 11... dxe4 {[%clk 0:02:54.7]} 12. Nxe4 {[%clk 0:02:45.1]}
12... Nxe4 {[%clk 0:02:55]} 13. Qxe4 {[%clk 0:02:46]} 13... Nf6 {[%clk
0:02:55.7]} 14. Qc2 {[%clk 0:02:42.6]} 14... Bd6 {[%clk 0:02:51.3]} 15. Rfe1
{[%clk 0:02:40.6]} 15... h6 {[%clk 0:02:30.5]} 16. Ne5 {[%clk 0:02:33.5]} 16...
Be6 {[%clk 0:02:27.4]} 17. Bc3 {[%clk 0:02:28.7]} 17... Bd5 {[%clk 0:02:26.9]}
18. Bxd5 {[%clk 0:02:26.7]} 18... Nxd5 {[%clk 0:02:27.8]} 19. Qf5 {[%clk
0:02:25.1]} 19... Bxe5 {[%clk 0:02:11.6]} 20. dxe5 {[%clk 0:02:19.8]} 20... Nxc3
{[%clk 0:02:11.4]} 21. bxc3 {[%clk 0:02:20.7]} 21... g6 {[%clk 0:01:59.8]} 22.
Qf4 {[%clk 0:02:15.7]} 22... Kg7 {[%clk 0:01:56.4]} 23. Rad1 {[%clk 0:02:14.3]}
23... Qe7 {[%clk 0:01:56.4]} 24. Qd4 {[%clk 0:01:54.7]} 24... Qe6 {[%clk
0:01:55.3]} 25. Qd7 {[%clk 0:01:49.5]} 25... Qxa2 {[%clk 0:01:33.8]} 26. Qxb7
{[%clk 0:01:49]} 26... Qe6 {[%clk 0:01:32.1]} 27. Ra1 {[%clk 0:01:39]} 27... a5
{[%clk 0:01:29.6]} 28. Ra4 {[%clk 0:01:24.7]} 28... Reb8 {[%clk 0:01:23.3]} 29.
Qc7 {[%clk 0:01:24.3]} 29... Rb5 {[%clk 0:01:11.9]} 30. Rf4 {[%clk 0:01:13.4]}
30... Re8 {[%clk 0:00:59.3]} 31. Rf6 {[%clk 0:01:08.2]} 31... Qe7 {[%clk
0:00:54.8]} 32. Qxc6 {[%clk 0:01:07.8]} 32... Rxe5 {[%clk 0:00:53.8]} 33. Rxe5
{[%clk 0:01:06]} 33... Qxe5 {[%clk 0:00:54.7]} 34. Rf4 {[%clk 0:01:04.8]} 34...
Qe6 {[%clk 0:00:51.8]} 35. Qc5 {[%clk 0:01:01.1]} 35... Qe5 {[%clk 0:00:50.2]}
36. Qc4 {[%clk 0:00:58.1]} 36... Qe6 {[%clk 0:00:45]} 37. Qb5 {[%clk 0:00:56.7]}
37... Qe5 {[%clk 0:00:31.5]} 38. Qc4 {[%clk 0:00:51.5]} 38... Qe6 {[%clk
0:00:29.2]} 39. Qa4 {[%clk 0:00:47.7]} 39... Qd5 {[%clk 0:00:25.3]} 40. Qxe8
{[%clk 0:00:46]} 40... g5 {[%clk 0:00:20.5]} 41. Re4 {[%clk 0:00:43]} 41... g4
{[%clk 0:00:19]} 42. Qe5+ {[%clk 0:00:42.6]} 42... Qxe5 {[%clk 0:00:19.7]} 43.
Rxe5 {[%clk 0:00:43.5]} 43... Kf6 {[%clk 0:00:20.6]} 44. Rxa5 {[%clk 0:00:43.6]}
44... h5 {[%clk 0:00:21.1]} 45. Rd5 {[%clk 0:00:43.4]} 45... h4 {[%clk 0:00:22]}
46. c4 {[%clk 0:00:43.8]} 46... h3 {[%clk 0:00:22.9]} 47. c5 {[%clk 0:00:43.8]}
47... Kg6 {[%clk 0:00:23.8]} 48. c6 {[%clk 0:00:44.1]} 48... f5 {[%clk
0:00:24.7]} 49. c7 {[%clk 0:00:44.5]} 49... f4 {[%clk 0:00:24.8]} 50. gxf4
{[%clk 0:00:45]} 50... g3 {[%clk 0:00:24.2]} 51. hxg3 {[%clk 0:00:44.9]} 51...
h2+ {[%clk 0:00:23.9]} 52. Kxh2 {[%clk 0:00:45.8]} 52... Kh6 {[%clk 0:00:23.7]}
53. c8=Q {[%clk 0:00:45.2]} 53... Kg6 {[%clk 0:00:24.6]} 54. Qc6+ {[%clk
0:00:45.2]} 54... Kg7 {[%clk 0:00:24.7]} 55. Rd7+ {[%clk 0:00:46.1]} 55... Kh8
{[%clk 0:00:24.7]} 56. Qc8# {[%clk 0:00:47]} 1-0